fUSD/lending_fUSD_20241225
["ID","MTS","AMOUNT","RATE_DAILY","PERIOD"]
[346657490,1735155043410,-500.0,0.00012258,2]
[346657491,1735155043419,-413.39165555,0.00012258,2]
[346657492,1735155043429,-639.07,0.00012258,2]
[346657493,1735155043438,-621.91,0.00012258,2]
[346657494,1735155043448,-629.49,0.00012258,2]
[346657495,1735155043457,-500.0,0.00012258,2]
[346657496,1735155043467,-507.11,0.00012258,2]
[346657497,1735155043477,-582.37,0.00012258,2]
[346657498,1735155043486,-635.02,0.00012258,2]
[346657499,1735155043495,-500.0,0.00012258,2]
[346657500,1735155043505,-500.0,0.00012258,2]
[346657501,1735155043514,-500.0,0.00012258,2]
[346657502,1735155043525,-500.0,0.00012258,2]
[346657503,1735155043535,-500.0,0.00012258,2]
[346657504,1735155043546,-500.0,0.00012258,2]
[346657505,1735155043557,-500.73626573,0.00012258,2]
[346657506,1735155043568,-500.0,0.00012258,2]
[346657507,1735155043581,-500.0,0.00012258,2]
[346657508,1735155043596,-500.0,0.00012258,2]
[346657509,1735155043609,-500.0,0.00012258,2]
[346657510,1735155043620,-500.0,0.00012258,2]
[346657511,1735155043629,-500.0,0.00012258,2]
[346657512,1735155043640,-500.0,0.00012258,2]
[346657513,1735155043650,-575.4,0.00012258,2]
[346657514,1735155043665,-500.0,0.00012258,2]
[346657515,1735155043674,-500.0,0.00012258,2]
[346657516,1735155043683,-500.0,0.00012258,2]
[346657517,1735155043693,-500.0,0.00012258,2]
[346657518,1735155043703,-500.0,0.00012258,2]
[346657519,1735155043712,-500.0,0.00012258,2]
[346657520,1735155043722,-619.92,0.00012258,2]
[346657521,1735155043732,-500.0,0.00012258,2]
[346657522,1735155043741,-500.0,0.00012258,2]
[346657523,1735155043751,-500.0,0.00012258,2]
[346657524,1735155043760,-603.58,0.00012258,2]
[346657525,1735155043769,-500.0,0.00012258,2]
[346657526,1735155043779,-500.0,0.00012258,2]
[346657527,1735155043789,-500.0,0.00012258,2]
[346657528,1735155043798,-500.0,0.00012258,2]
[346657529,1735155043808,-500.0,0.00012258,2]
[346657530,1735155043817,-500.0,0.00012258,2]
[346657531,1735155043828,-500.0,0.00012258,2]
[346657532,1735155043838,-500.0,0.00012258,2]
[346657533,1735155043847,-500.0,0.00012258,2]
[346657534,1735155043857,-500.0,0.00012258,2]
[346657535,1735155043867,-500.0,0.00012258,2]
[346657536,1735155043876,-500.0,0.00012258,2]
[346657537,1735155043886,-366.69645598,0.00012258,2]
[346657538,1735155043896,-500.0,0.00012258,2]
[346657539,1735155043906,-500.0,0.00012258,2]
[346657540,1735155043915,-500.0,0.00012258,2]
[346657541,1735155043925,-500.0,0.00012258,2]
[346657542,1735155043935,-500.0,0.00012258,2]
[346657543,1735155043944,-558.37,0.00012258,2]
[346657544,1735155043954,-500.0,0.00012258,2]
[346657545,1735155043963,-500.0,0.00012258,2]
[346657546,1735155043972,-500.0,0.00012258,2]
[346657547,1735155043982,-500.0,0.00012258,2]
[346657548,1735155043992,-548.7,0.00012258,2]
[346657549,1735155044002,-538.57,0.00012258,2]
[346657550,1735155044012,-500.0,0.00012258,2]
[346657551,1735155044022,-500.0,0.00012258,2]
[346657552,1735155044031,-500.0,0.00012258,2]
[346657553,1735155044042,-508.33,0.00012258,2]
[346657554,1735155044051,-500.0,0.00012258,2]
[346657555,1735155044061,-361.00852748,0.00012258,2]
[346657556,1735155044204,-2117.63,0.00011986,2]
[346657557,1735155044214,-138.99147252,0.00012258,2]
[346657558,1735155044223,-500.0,0.00012258,2]
[346657559,1735155044232,-500.0,0.00012258,2]
[346657560,1735155044242,-500.0,0.00012258,2]
[346657561,1735155044252,-500.0,0.00012258,2]
[346657563,1735155044261,-532.98,0.00012258,2]
[346657565,1735155044271,-459.76,0.00012258,2]
[346657566,1735155044281,-334.11747749,0.00012258,2]
[346657567,1735155044290,-492.75,0.00012258,2]
[346657568,1735155044299,-500.0,0.00012258,2]
[346657569,1735155044309,-500.0,0.00012258,2]
[346657570,1735155044319,-500.0,0.00012258,2]
[346657571,1735155044328,-500.0,0.00012258,2]
[346657572,1735155044338,-500.0,0.00012258,2]
[346657573,1735155044348,-278.0128563,0.00012258,2]
[346657577,1735155044482,-221.9871437,0.00012258,2]
[346657578,1735155044492,-500.0,0.00012258,2]
[346657579,1735155044501,-500.0,0.00012258,2]
[346657580,1735155044510,-52.6080067,0.00012258,2]
[346657581,1735155044523,-360.20251,0.00012258,2]
[346657582,1735155044535,-87.1894833,0.00012258,2]
[346657583,1735155044546,-500.0,0.00012258,2]
[346657584,1735155044555,-500.0,0.00012258,2]
[346657585,1735155044565,-193.38340766,0.00012258,2]
[346657586,1735155044574,-500.0,0.00012258,2]
[346657587,1735155044583,-167.27510904,0.00012258,2]
[346657591,1735155045960,-412.3730018,0.00011985,2]
[346657592,1735155045972,-87.6269982,0.00011985,2]
[346657593,1735155045981,-500.0,0.00011986,2]
[346657594,1735155045991,-332.72489096,0.00012258,2]
[346657595,1735155046000,-500.0,0.00012258,2]
[346657596,1735155046010,-500.0,0.00012258,2]
[346657597,1735155046018,-130.64811084,0.00012258,2]
[346657598,1735155046030,-369.35188916,0.00012258,2]
[346657599,1735155046039,-500.0,0.00012258,2]
[346657600,1735155046049,-191.5,0.00012258,2]
[346657601,1735155046058,-500.0,0.00012258,2]
[346657602,1735155046068,-500.0,0.00012258,2]
[346657603,1735155046078,-500.0,0.00012258,2]
[346657604,1735155046087,-500.0,0.00012258,2]
[346657605,1735155046096,-500.0,0.00012258,2]
[346657606,1735155046106,-500.0,0.00012258,2]
[346657607,1735155046115,-500.0,0.00012258,2]
[346657608,1735155046125,-500.0,0.00012258,2]
[346657609,1735155046135,-500.0,0.00012258,2]
[346657610,1735155046144,-500.0,0.00012258,2]
[346657611,1735155046153,-500.0,0.00012258,2]
[346657612,1735155046162,-500.0,0.00012258,2]
[346657613,1735155046172,-500.0,0.00012258,2]
[346657614,1735155046181,-500.0,0.00012258,2]
[346657615,1735155046191,-500.0,0.00012258,2]
[346657616,1735155046200,-500.0,0.00012258,2]
[346657617,1735155046209,-500.0,0.00012258,2]
[346657618,1735155046218,-243.41495626,0.00012258,2]
[346657619,1735155046228,-500.0,0.00012258,2]
[346657620,1735155046239,-500.0,0.00012258,2]
[346657621,1735155046248,-500.0,0.00012258,2]
[346657622,1735155046258,-500.0,0.00012258,2]
[346657623,1735155046267,-500.0,0.00012258,2]
[346657624,1735155046277,-500.0,0.00012258,2]
[346657625,1735155046286,-500.0,0.00012258,2]
[346657626,1735155046296,-500.0,0.00012258,2]
[346657627,1735155046305,-500.0,0.00012258,2]
[346657628,1735155046314,-500.0,0.00012258,2]
[346657629,1735155046323,-500.0,0.00012258,2]
[346657630,1735155046333,-500.0,0.00012258,2]
[346657632,1735155046343,-500.0,0.00012258,2]
[346657634,1735155046352,-500.0,0.00012258,2]
[346657635,1735155046361,-500.0,0.00012258,2]
[346657636,1735155046371,-500.0,0.00012258,2]
[346657637,1735155046381,-500.0,0.00012258,2]
[346657638,1735155046390,-500.0,0.00012258,2]
[346657639,1735155046399,-500.0,0.00012258,2]
[346657640,1735155046409,-500.0,0.00012258,2]
[346657641,1735155046419,-500.0,0.00012258,2]
[346657642,1735155046428,-216.63314594,0.00012258,2]
[346657643,1735155046437,-500.0,0.00012258,2]
[346657644,1735155046447,-500.0,0.00012258,2]
[346657645,1735155046456,-500.0,0.00012258,2]
[346657646,1735155046465,-378.48986637,0.00012258,2]
[346657647,1735155046475,-595.66872591,0.00012258,2]
[346657648,1735155046485,-2489.4,0.00012258,2]
[346657649,1735155046494,-491.96,0.00012258,2]
[346657650,1735155046504,-11322.43,0.00012258,2]
[346657651,1735155046513,-1424.77,0.00012258,2]
[346657652,1735155046523,-946.31,0.00012258,2]
[346657653,1735155046532,-500.0,0.00012258,2]
[346657654,1735155046541,-500.0,0.00012258,2]
[346657655,1735155046550,-514.87,0.00012258,2]
[346657656,1735155046559,-1506.4,0.00012258,2]
[346657657,1735155046569,-500.0,0.00012258,2]
[346657658,1735155046579,-9260.52,0.00012258,2]
[346657659,1735155046588,-500.0,0.00012258,2]
[346657660,1735155046598,-1232.36,0.00012258,2]
[346657661,1735155046607,-500.0,0.00012258,2]
[346657662,1735155046617,-1062.74,0.00012258,2]
[346657663,1735155046626,-513.05,0.00012258,2]
[346657664,1735155046635,-1400.11,0.00012258,2]
[346657665,1735155046644,-500.0,0.00012258,2]
[346657666,1735155046656,-500.0,0.00012258,2]
[346657667,1735155046667,-500.0,0.00012258,2]
[346657668,1735155046676,-500.0,0.00012258,2]
[346657669,1735155046685,-500.0,0.00012258,2]
[346657670,1735155046697,-500.0,0.00012258,2]
[346657671,1735155046707,-1000.0,0.00012258,2]
[346657672,1735155046716,-500.0,0.00012258,2]
[346657673,1735155046725,-500.0,0.00012258,2]
[346657674,1735155046734,-883.09,0.00012258,2]
[346657675,1735155046743,-481.35813675,0.00012258,2]
[346657676,1735155046753,-503.24,0.00012258,2]
[346657677,1735155046762,-500.0,0.00012258,2]
[346657678,1735155046772,-500.0,0.00012258,2]
[346657679,1735155046781,-1997.85,0.00012258,2]
[346657680,1735155046791,-500.0,0.00012258,2]
[346657681,1735155046801,-500.0,0.00012258,2]
[346657682,1735155046811,-500.0,0.00012258,2]
[346657683,1735155046821,-1052.42,0.00012258,2]
[346657684,1735155046830,-500.0,0.00012258,2]
[346657685,1735155046839,-500.0,0.00012258,2]
[346657686,1735155046848,-868.62,0.00012258,2]
[346657687,1735155046859,-500.0,0.00012258,2]
[346657688,1735155046868,-500.0,0.00012258,2]
[346657689,1735155046878,-990.62,0.00012259,2]
[346657690,1735155046887,-702.91,0.00012259,2]
[346657691,1735155046896,-173.16832482,0.00012259,2]
[346657692,1735155046905,-578.82,0.00012259,2]
[346657693,1735155046915,-500.0,0.00012259,2]
[346657694,1735155046924,-1410.92,0.00012259,2]
[346657695,1735155046933,-1610.84,0.00012259,2]
[346657696,1735155046943,-2250.15,0.00012259,2]
[346657697,1735155046952,-500.0,0.00012259,2]
[346657698,1735155046961,-1103.41,0.00012259,2]
[346657699,1735155046971,-2491.02422387,0.00012259,2]
[346657700,1735155046993,-855.22269352,0.00012259,2]
[346657701,1735155047089,-3935.88308261,0.00012259,2]
[346657702,1735155047098,-1316.42,0.00012259,2]
[346657703,1735155047107,-1812.17,0.00012259,2]
[346657704,1735155047117,-1679.34816238,0.00012259,2]
[346657705,1735155047144,-648.86183762,0.00012259,2]
[346657706,1735155047154,-111.27071635,0.00012259,2]
[346657707,1735155047165,-902.4242175,0.00012259,2]
[346657711,1735155250819,3000.0,0.00024929,120]
[346657712,1735155473932,2704.194,0.00024929,60]
[346657713,1735155483772,1634.71623212,0.00024929,120]
[346657715,1735156143041,3842.04245258,0.00024927,120]
[346657716,1735156171133,-464.52,9.532e-05,2]
[346657717,1735156171159,-423.15,0.00010137,2]
[346657718,1735156171181,-540.577923,0.00011431,2]
[346657719,1735156171203,-183.03,0.00011452,2]
[346657720,1735156171227,-1000.0,0.00011489,2]
[346657721,1735156171249,-250.0,0.00011679,2]
[346657722,1735156171273,-450.81,0.000117,2]
[346657726,1735156232398,-464.52,0.00011796,2]
[346657727,1735156232408,-153.36882548,0.00011985,2]
[346657728,1735156232419,-346.63117452,0.00011985,2]
[346657729,1735156232429,-500.0,0.00011985,2]
[346657730,1735156232438,-10.82197682,0.00011985,2]
[346657736,1735156234631,250.0,0.00011664,2]
[346657737,1735156238091,-489.17802318,0.00011985,2]
[346657738,1735156238103,-500.0,0.00011985,2]
[346657739,1735156238116,-500.0,0.00011985,2]
[346657740,1735156238128,-500.0,0.00011985,2]
[346657741,1735156238140,-500.0,0.00011985,2]
[346657742,1735156238153,-477.53896682,0.00011985,2]
[346657744,1735156238221,-22.46103318,0.00011985,2]
[346657745,1735156238234,-500.0,0.00011985,2]
[346657746,1735156238247,-19.50257072,0.00011985,2]
[346657747,1735156238263,-319.96580404,0.00011985,2]
[346657748,1735156238275,-500.0,0.00011985,2]
[346657749,1735156238287,-500.0,0.00011985,2]
[346657750,1735156238299,-161.91119596,0.00011985,2]
[346657751,1735156238315,-338.08880404,0.00011985,2]
[346657752,1735156238327,-500.0,0.00011985,2]
[346657753,1735156238339,-153.51802496,0.00011985,2]
[346657755,1735156240069,-346.48197504,0.00011985,2]
[346657756,1735156240081,-500.0,0.00011985,2]
[346657757,1735156240092,-500.0,0.00011985,2]
[346657758,1735156240104,-500.0,0.00011985,2]
[346657759,1735156240115,-500.0,0.00011985,2]
[346657760,1735156240126,-507.75,0.00011985,2]
[346657761,1735156240137,-500.0,0.00011985,2]
[346657762,1735156240149,-500.0,0.00011985,2]
[346657763,1735156240160,-500.0,0.00011985,2]
[346657764,1735156240175,-500.0,0.00011985,2]
[346657765,1735156240187,-500.0,0.00011985,2]
[346657766,1735156240198,-637.55,0.00011985,2]
[346657767,1735156240210,-649.18,0.00011985,2]
[346657768,1735156240221,-500.0,0.00011985,2]
[346657769,1735156240233,-500.0,0.00011985,2]
[346657770,1735156240244,-500.0,0.00011985,2]
[346657771,1735156240255,-500.0,0.00011985,2]
[346657772,1735156240267,-500.0,0.00011985,2]
[346657773,1735156240278,-500.0,0.00011985,2]
[346657774,1735156240289,-500.0,0.00011985,2]
[346657775,1735156240300,-500.0,0.00011985,2]
[346657776,1735156240311,-500.0,0.00011985,2]
[346657777,1735156240322,-500.0,0.00011985,2]
[346657778,1735156240333,-500.0,0.00011985,2]
[346657779,1735156240344,-500.0,0.00011985,2]
[346657780,1735156240355,-500.0,0.00011985,2]
[346657781,1735156240366,-500.0,0.00011985,2]
[346657782,1735156240376,-500.0,0.00011985,2]
[346657783,1735156240387,-500.0,0.00011985,2]
[346657784,1735156240399,-500.0,0.00011985,2]
[346657785,1735156240410,-500.0,0.00011985,2]
[346657786,1735156240420,-500.0,0.00011985,2]
[346657787,1735156240432,-500.0,0.00011985,2]
[346657788,1735156240443,-500.0,0.00011985,2]
[346657789,1735156240456,-500.0,0.00011985,2]
[346657790,1735156240466,-500.0,0.00011985,2]
[346657791,1735156240477,-500.0,0.00011985,2]
[346657792,1735156240488,-500.0,0.00011985,2]
[346657793,1735156240499,-500.0,0.00011985,2]
[346657794,1735156240511,-150.94651398,0.00011985,2]
[346657796,1735156240522,-500.0,0.00011985,2]
[346657797,1735156240533,-500.0,0.00011985,2]
[346657798,1735156240545,-510.89,0.00011985,2]
[346657799,1735156240556,-500.0,0.00011985,2]
[346657800,1735156240566,-500.0,0.00011985,2]
[346657801,1735156240578,-500.0,0.00011985,2]
[346657802,1735156240592,-261.17132401,0.00011985,2]
[346657803,1735156240609,-238.82867599,0.00011985,2]
[346657804,1735156240621,-525.39,0.00011985,2]
[346657805,1735156240632,-500.0,0.00011985,2]
[346657806,1735156240643,-418.96,0.00011985,2]
[346657807,1735156240656,-500.0,0.00011985,2]
[346657808,1735156240669,-500.0,0.00011985,2]
[346657809,1735156240681,-500.0,0.00011985,2]
[346657810,1735156240694,-500.0,0.00011985,2]
[346657811,1735156240705,-500.0,0.00011985,2]
[346657812,1735156240716,-500.0,0.00011985,2]
[346657813,1735156240728,-500.0,0.00011985,2]
[346657814,1735156240741,-500.0,0.00011985,2]
[346657815,1735156240752,-190.0,0.00011985,2]
[346657816,1735156240764,-284.28,0.00011985,2]
[346657817,1735156240777,-500.0,0.00011985,2]
[346657818,1735156240789,-525.24,0.00011985,2]
[346657819,1735156240801,-500.0,0.00011985,2]
[346657820,1735156240812,-500.0,0.00011985,2]
[346657821,1735156240822,-500.0,0.00011985,2]
[346657822,1735156240834,-500.0,0.00011985,2]
[346657823,1735156240845,-500.0,0.00011985,2]
[346657824,1735156240855,-500.0,0.00011985,2]
[346657825,1735156240868,-500.0,0.00011985,2]
[346657826,1735156240880,-500.0,0.00011985,2]
[346657827,1735156240893,-500.0,0.00011985,2]
[346657828,1735156240903,-500.0,0.00011985,2]
[346657829,1735156240914,-500.0,0.00011985,2]
[346657830,1735156240924,-500.0,0.00011985,2]
[346657831,1735156240935,-523.32,0.00011985,2]
[346657832,1735156240948,-500.0,0.00011985,2]
[346657833,1735156240959,-500.0,0.00011985,2]
[346657834,1735156240970,-500.0,0.00011985,2]
[346657835,1735156240980,-500.0,0.00011985,2]
[346657836,1735156240991,-500.0,0.00011985,2]
[346657837,1735156241002,-500.0,0.00011985,2]
[346657838,1735156241013,-500.0,0.00011985,2]
[346657839,1735156241024,-500.0,0.00011985,2]
[346657840,1735156241034,-500.0,0.00011985,2]
[346657841,1735156241045,-500.0,0.00011985,2]
[346657842,1735156241057,-425.15701001,0.00011985,2]
[346657843,1735156241073,-74.84298999,0.00011985,2]
[346657844,1735156241084,-500.0,0.00011985,2]
[346657845,1735156241095,-522.46,0.00011985,2]
[346657846,1735156241111,-500.0,0.00011985,2]
[346657847,1735156241124,-210.29700989,0.00011985,2]
[346657848,1735156241146,-289.70299011,0.00011985,2]
[346657849,1735156241158,-179.60771028,0.00011985,2]
[346657850,1735156241175,-320.39228972,0.00011985,2]
[346657851,1735156241186,-500.0,0.00011985,2]
[346657852,1735156241197,-500.0,0.00011985,2]
[346657853,1735156241209,-500.0,0.00011985,2]
[346657854,1735156241219,-500.0,0.00011985,2]
[346657855,1735156241230,-500.0,0.00011985,2]
[346657856,1735156241241,-500.0,0.00011985,2]
[346657857,1735156241251,-832.43,0.00011985,2]
[346657858,1735156241262,-500.0,0.00011985,2]
[346657859,1735156241273,-735.06,0.00011985,2]
[346657860,1735156241283,-500.0,0.00011985,2]
[346657861,1735156241294,-500.0,0.00011985,2]
[346657862,1735156241305,-500.0,0.00011985,2]
[346657863,1735156241315,-500.0,0.00011985,2]
[346657864,1735156241326,-500.0,0.00011985,2]
[346657865,1735156241337,-500.0,0.00011985,2]
[346657866,1735156241348,-814.12,0.00011985,2]
[346657867,1735156241360,-500.0,0.00011985,2]
[346657868,1735156241371,-500.0,0.00011985,2]
[346657869,1735156241382,-108.27973672,0.00011985,2]
[346657870,1735156241395,-391.72026328,0.00011985,2]
[346657871,1735156241407,-500.0,0.00011985,2]
[346657872,1735156241418,-500.0,0.00011985,2]
[346657873,1735156241430,-500.0,0.00011985,2]
[346657874,1735156241442,-500.0,0.00011985,2]
[346657875,1735156241453,-500.0,0.00011985,2]
[346657876,1735156241464,-602.86,0.00011985,2]
[346657877,1735156241475,-507.75,0.00011985,2]
[346657878,1735156241487,-563.63,0.00011985,2]
[346657879,1735156241497,-500.0,0.00011985,2]
[346657880,1735156241508,-500.0,0.00011985,2]
[346657881,1735156241518,-500.0,0.00011985,2]
[346657882,1735156241529,-500.0,0.00011985,2]
[346657883,1735156241541,-550.08476334,0.00011985,2]
[346657884,1735156241551,-239.48277066,0.00011985,2]
[346657885,1735156241564,-260.51722934,0.00011985,2]
[346657886,1735156241575,-626.65,0.00011985,2]
[346657887,1735156241586,-500.0,0.00011985,2]
[346657888,1735156241596,-500.0,0.00011985,2]
[346657889,1735156241606,-500.0,0.00011985,2]
[346657890,1735156241616,-500.0,0.00011985,2]
[346657891,1735156241627,-500.0,0.00011985,2]
[346657892,1735156241637,-500.0,0.00011985,2]
[346657893,1735156241651,-500.0,0.00011985,2]
[346657894,1735156241660,-798.41,0.00011985,2]
[346657895,1735156241669,-500.0,0.00011985,2]
[346657896,1735156241679,-500.0,0.00011985,2]
[346657897,1735156241689,-500.0,0.00011985,2]
[346657898,1735156241699,-500.0,0.00011985,2]
[346657899,1735156241708,-500.0,0.00011985,2]
[346657900,1735156241718,-500.0,0.00011985,2]
[346657901,1735156242040,-605.2,0.00011985,2]
[346657902,1735156242062,-500.0,0.00011985,2]
[346657903,1735156242079,-250.81451177,0.00011985,2]
[346657904,1735156242091,-249.18548823,0.00011985,2]
[346657905,1735156242102,-500.0,0.00011985,2]
[346657906,1735156242111,-500.0,0.00011985,2]
[346657907,1735156242120,-500.0,0.00011985,2]
[346657908,1735156242129,-500.0,0.00011985,2]
[346657909,1735156242138,-500.0,0.00011985,2]
[346657910,1735156242148,-500.0,0.00011985,2]
[346657911,1735156242157,-500.0,0.00011985,2]
[346657912,1735156242170,-500.0,0.00011985,2]
[346657913,1735156242180,-430.31451177,0.00012247,2]
[346657924,1735156243070,-69.68548823,0.00012247,2]
[346657925,1735156243080,-2142.77260549,0.00012247,2]
[346657926,1735156243166,-7857.21739451,0.00012247,2]
[346657927,1735156243176,-150.99,0.00012247,2]
[346657928,1735156243186,-150.99,0.00012247,2]
[346657929,1735156243195,-626.4,0.00012247,2]
[346657930,1735156243205,-19748.82,0.00012247,2]
[346657931,1735156243214,-908.07,0.00012255,2]
[346657932,1735156243223,-644.34,0.00012255,2]
[346657933,1735156243234,-530.58,0.00012255,2]
[346657934,1735156243243,-1293.34,0.00012255,2]
[346657935,1735156243252,-1441.36576474,0.00012255,2]
[346657936,1735156243264,-629.07423526,0.00012255,2]
[346657937,1735156243273,-1032.29,0.00012255,2]
[346657938,1735156243283,-761.07390116,0.00012255,2]
[346657939,1735156243294,-466.47609884,0.00012255,2]
[346657940,1735156243304,-612.59835433,0.00012255,2]
[346657941,1735156243320,-1547.00164567,0.00012255,2]
[346657942,1735156243330,-265.3273817,0.00012255,2]
[346657958,1735156246098,-571.8726183,0.00012255,2]
[346657959,1735156246108,-467.5766867,0.00012255,2]
[346657960,1735156246119,-339.9233133,0.00012255,2]
[346657961,1735156246129,-660.0766867,0.00012255,2]
[346657962,1735156246140,-5565.3733133,0.00012255,2]
[346657963,1735156246149,-1631.22,0.00012255,2]
[346657964,1735156246159,-1105.2,0.00012255,2]
[346657965,1735156246172,-500.0,0.00012255,2]
[346657966,1735156246182,-986.28610041,0.00012255,2]
[346657967,1735156246215,-414.96105602,0.00012255,2]
[346657968,1735156246227,-1095.04284357,0.00012255,2]
[346657969,1735156246237,-482.04102843,0.00012256,2]
[346657970,1735156246248,-9478.14897157,0.00012256,2]
[346657971,1735156246259,-9999.99,0.00012256,2]
[346657972,1735156246268,-999.99,0.00012256,2]
[346657973,1735156246278,-1109.6,0.00012256,2]
[346657974,1735156246287,-2117.55,0.00012256,2]
[346657975,1735156246296,-1535.27,0.00012256,2]
[346657976,1735156246306,-504.02,0.00012256,2]
[346657977,1735156246315,-347.11,0.00012256,2]
[346657978,1735156246325,-501.55087084,0.00012256,2]
[346657980,1735156246334,-281.17951881,0.00012256,2]
[346657981,1735156246343,-500.0,0.00012256,2]
[346657982,1735156246354,-500.0,0.00012256,2]
[346657983,1735156246364,-500.0,0.00012256,2]
[346657984,1735156246374,-154.85,0.00012256,2]
[346657985,1735156246384,-500.0,0.00012256,2]
[346657986,1735156246394,-500.0,0.00012256,2]
[346657987,1735156246404,-500.0,0.00012256,2]
[346657988,1735156246414,-500.0,0.00012256,2]
[346657989,1735156246423,-500.0,0.00012256,2]
[346657990,1735156246432,-1319.95,0.00012256,2]
[346657992,1735156246442,-543.17,0.00012256,2]
[346657994,1735156246452,-562.27,0.00012256,2]
[346657996,1735156246461,-437.70267814,0.00012256,2]
[346657998,1735156246471,-500.0,0.00012256,2]
[346658000,1735156246480,-1722.57,0.00012256,2]
[346658002,1735156246489,-500.0,0.00012256,2]
[346658004,1735156246498,-518.547649,0.00012256,2]
[346658005,1735156246507,-861.57,0.00012256,2]
[346658007,1735156246517,-3834.31,0.00012256,2]
[346658009,1735156246526,-500.0,0.00012256,2]
[346658011,1735156246535,-968.37,0.00012256,2]
[346658013,1735156246544,-500.0,0.00012256,2]
[346658015,1735156246553,-863.81,0.00012256,2]
[346658018,1735156246563,-500.0,0.00012256,2]
[346658019,1735156246572,-192.08,0.00012256,2]
[346658022,1735156246582,-1057.11,0.00012256,2]
[346658024,1735156246591,-500.0,0.00012256,2]
[346658026,1735156246601,-1099.66,0.00012256,2]
[346658028,1735156246610,-2416.69,0.00012256,2]
[346658029,1735156246619,-500.0,0.00012256,2]
[346658031,1735156246629,-767.63,0.00012256,2]
[346658034,1735156246638,-178.34,0.00012256,2]
[346658035,1735156246647,-1102.66,0.00012256,2]
[346658037,1735156246656,-500.0,0.00012256,2]
[346658039,1735156246666,-648.95,0.00012256,2]
[346658041,1735156246675,-4320.09,0.00012256,2]
[346658043,1735156246684,-1159.88,0.00012256,2]
[346658045,1735156246693,-500.0,0.00012256,2]
[346658047,1735156246703,-880.76,0.00012256,2]
[346658049,1735156246712,-500.0,0.00012256,2]
[346658051,1735156246722,-500.0,0.00012256,2]
[346658053,1735156246731,-1135.17,0.00012256,2]
[346658055,1735156246740,-500.0,0.00012256,2]
[346658057,1735156246749,-3745.7,0.00012256,2]
[346658059,1735156246758,-500.0,0.00012256,2]
[346658061,1735156246767,-500.0,0.00012256,2]
[346658063,1735156246777,-953.3,0.00012256,2]
[346658065,1735156246786,-3274.08,0.00012256,2]
[346658067,1735156246796,-1497.44,0.00012256,2]
[346658069,1735156246806,-500.0,0.00012256,2]
[346658071,1735156246815,-1496.69,0.00012256,2]
[346658073,1735156246824,-500.0,0.00012256,2]
[346658075,1735156246834,-1456.45,0.00012256,2]
[346658077,1735156246844,-6733.37,0.00012256,2]
[346658079,1735156246853,-1288.74,0.00012256,2]
[346658080,1735156246862,-453.44,0.00012256,2]
[346658081,1735156246871,-982.58,0.00012256,2]
[346658082,1735156246882,-5747.53,0.00012256,2]
[346658083,1735156246892,-500.0,0.00012256,2]
[346658084,1735156246902,-500.0,0.00012256,2]